bitfinex-derivatives/quotes_SOLF0:USTF0_20250903
["timestamp","ask_amount","ask_price","bid_price","bid_amount"]
[1756936036234,7.78,208.59,208.54,1.85550453]
[1756936036436,3.36493267,208.58,208.54,1.85550453]
[1756936036731,7.78,208.56,208.53,3.92550453]
[1756936037636,7.78,208.56,208.54,2.07]
[1756936038338,7.78,208.61,208.55,1.85550453]
[1756936038532,3.36827778,208.6,208.55,1.85550453]
[1756936038738,11.14827778,208.59,208.56,2.07]
[1756936039041,11.14827778,208.58,208.56,2.07]
[1756936039236,7.78,208.58,208.55,3.92550453]
[1756936039941,7.78,208.58,208.56,2.07]
[1756936040837,97.90507002,208.62,208.57,1.85550453]
[1756936041142,3.3674893,208.61,208.57,1.85550453]
[1756936041341,11.1474893,208.6,208.57,3.92550453]
[1756936041540,3.3674893,208.59,208.57,3.92550453]
[1756936042942,7.78,208.6,208.57,3.92550453]
[1756936043539,7.78,208.6,208.58,2.07]
[1756936043944,7.78,208.6,208.59,1.85550453]
[1756936044242,7.78,208.66,208.59,1.85550453]
[1756936044535,11.14680668,208.65,208.59,3.92550453]
[1756936044739,11.14680668,208.64,208.59,1.85550453]
[1756936044941,7.78,208.64,208.6,2.07]
[1756936045137,7.78,208.67,208.6,2.07]
[1756936045338,7.78,208.65,208.6,2.07]
[1756936045538,7.78,208.67,208.6,2.07]
[1756936045741,7.78,208.65,208.6,2.07]
[1756936046043,7.78,208.67,208.6,2.07]
[1756936046241,3.36544639,208.66,208.6,2.07]
[1756936046443,7.78,208.67,208.6,2.07]
[1756936046642,7.78,208.65,208.6,2.07]
[1756936046942,7.78,208.67,208.61,1.85550453]
[1756936047143,7.78,208.65,208.63,1.85550453]
[1756936047544,7.78,208.7,208.63,1.85550453]
[1756936047745,3.36331134,208.69,208.63,1.85550453]
[1756936048044,7.78,208.72,208.63,1.85550453]
[1756936048244,7.78,208.7,208.63,1.85550453]
[1756936048938,7.78,208.73,208.65,1.85550453]
[1756936049139,7.78,208.71,208.65,1.85550453]
[1756936050546,7.78,208.73,208.67,1.85550453]
[1756936050746,3.35819194,208.72,208.67,1.85550453]
[1756936051050,7.78,208.73,208.67,1.85550453]
[1756936052746,74.0,208.74,208.69,1.85550453]
[1756936052948,7.78,208.75,208.69,1.85550453]
[1756936056351,7.78,208.75,208.66,2.07]
[1756936056546,7.78,208.78,208.7,1.85550453]
[1756936058549,7.78,208.78,208.72,1.85550453]
[1756936060449,7.78,208.78,208.71,2.07]
[1756936060648,7.78,208.78,208.73,1.85550453]
[1756936061048,74.0,208.8,208.73,1.85550453]
[1756936061252,7.78,208.79,208.73,1.85550453]
[1756936070250,74.0,208.8,208.75,1.85550453]
[1756936070949,7.6,208.79,208.75,1.85550453]
[1756936074148,7.6,208.79,208.77,1.85550453]
[1756936074354,74.0,208.8,208.77,1.85550453]
[1756936074556,7.6,208.79,208.77,1.85550453]
[1756936075054,7.6,208.83,208.77,1.85550453]
[1756936080255,185.17704765,208.84,208.79,1.85550453]
[1756936080553,7.6,208.82,208.79,1.85550453]
[1756936080763,7.6,208.83,208.79,1.85550453]
[1756936081257,3.33743314,208.82,208.79,1.85550453]
[1756936081458,185.17704765,208.84,208.79,2.08]
[1756936081658,7.6,208.82,208.79,2.08]
[1756936081859,7.6,208.82,208.76,2.88940563]
[1756936081860,7.6,208.83,208.76,4.96940563]
[1756936083159,7.6,208.83,208.77,2.08]
[1756936086359,7.6,208.81,208.78,2.08]
[1756936086564,7.6,208.81,208.77,2.08]
[1756936087364,7.6,208.81,208.78,2.08]
[1756936087965,7.6,208.81,208.77,2.08]
[1756936088367,7.6,208.81,208.78,2.08]
[1756936088558,7.6,208.83,208.77,2.08]
[1756936088764,7.6,208.81,208.78,2.08]
[1756936088959,81.6,208.84,208.77,2.08]
[1756936089159,3.3485308,208.83,208.77,2.08]
[1756936089365,3.3485308,208.82,208.77,2.08]
[1756936089565,81.6,208.84,208.77,2.08]
[1756936089767,3.34985581,208.83,208.77,2.08]
[1756936090067,7.6,208.81,208.79,4.96940563]
[1756936090768,7.6,208.83,208.8,2.08]
[1756936091464,7.6,208.83,208.81,2.08]
[1756936099168,7.45,208.86,208.81,2.08]
[1756936099368,7.45,208.84,208.81,2.08]
[1756936099569,7.45,208.86,208.81,2.08]
[1756936099765,7.45,208.84,208.81,2.08]
[1756936100068,7.45,208.86,208.79,2.88940563]
[1756936100269,7.45,208.84,208.79,4.94940563]
[1756936100469,114.67537564,208.87,208.8,2.06]
[1756936100470,7.45,208.86,208.8,2.06]
[1756936100773,7.45,208.84,208.81,2.06]
[1756936101272,114.67537564,208.87,208.81,2.06]
[1756936101469,3.36954644,208.86,208.81,2.06]
[1756936101775,7.45,208.84,208.81,2.06]
[1756936101975,114.67537564,208.87,208.81,2.06]
[1756936102174,10.81954814,208.86,208.81,2.06]
[1756936102372,3.36954814,208.85,208.81,2.06]
[1756936102670,7.45,208.84,208.82,4.94940563]
[1756936102868,74.0,208.9,208.83,2.06]
[1756936102869,7.45,208.89,208.83,2.06]
[1756936103070,3.36999948,208.88,208.83,2.06]
[1756936103276,3.36999948,208.87,208.82,2.88940563]
[1756936103563,7.45,208.89,208.83,2.06]
[1756936103770,10.82003431,208.88,208.82,2.88940563]
[1756936104073,3.37003431,208.87,208.83,2.06]
[1756936104272,7.45,208.88,208.83,2.06]
[1756936104574,3.36970146,208.87,208.83,2.06]
[1756936104777,7.45,208.88,208.84,2.06]
[1756936105072,10.81970146,208.87,208.83,2.06]
[1756936105272,7.45,208.87,208.82,2.88940563]
[1756936105475,7.45,208.87,208.83,2.06]
[1756936106965,7.45,208.87,208.82,2.88940563]
[1756936107170,7.45,208.87,208.84,2.06]
[1756936108675,7.45,208.87,208.82,2.88940563]
[1756936108871,7.45,208.87,208.84,2.06]
[1756936109076,7.45,208.87,208.82,2.88940563]
[1756936109276,7.45,208.87,208.83,2.06]
[1756936109878,7.45,208.87,208.82,2.88940563]
[1756936110076,7.45,208.87,208.84,2.06]
[1756936110476,7.45,208.87,208.83,26.7]
[1756936110678,7.45,208.87,208.84,2.06]
[1756936111074,113.63819952,208.94,208.85,2.88940563]
[1756936111280,10.81916802,208.93,208.85,2.88940563]
[1756936111480,113.63819952,208.94,208.85,2.88940563]
[1756936111481,7.45,208.91,208.86,2.06]
[1756936111783,7.45,208.97,208.88,4.94940563]
[1756936111977,7.45,208.95,208.88,4.94940563]
[1756936112279,3.36954787,208.94,208.88,4.94940563]
[1756936112479,3.36954787,208.94,208.88,2.06]
[1756936112670,3.36954787,208.94,208.88,2.88940563]
[1756936112875,7.45,208.99,208.88,2.88940563]
[1756936113076,7.45,208.97,208.88,2.88940563]
[1756936113277,7.45,208.95,208.88,2.88940563]
[1756936113479,3.3165985,208.94,208.88,2.88940563]
[1756936113676,7.45,208.95,208.88,2.88940563]
[1756936113877,3.31575198,208.94,208.88,2.88940563]
[1756936114076,7.45,208.95,208.88,2.88940563]
[1756936114276,7.45,208.93,208.88,4.94940563]
[1756936114480,7.45,209.01,208.88,4.94940563]
[1756936114680,7.45,208.99,208.88,4.94940563]
[1756936114882,7.45,208.97,208.88,4.94940563]
[1756936115178,7.45,208.95,208.88,4.94940563]
[1756936115375,3.31506881,208.94,208.88,4.94940563]
[1756936115680,7.45,208.95,208.88,4.94940563]
[1756936115879,3.31447418,208.94,208.88,4.94940563]
[1756936116072,7.45,208.95,208.88,4.94940563]
[1756936116274,3.31447418,208.94,208.88,4.94940563]
[1756936116473,7.45,208.95,208.88,4.94940563]
[1756936116676,3.31405695,208.94,208.88,4.94940563]
[1756936116982,7.45,208.95,208.88,4.94940563]
[1756936119778,7.45,209.01,208.91,2.88940563]
[1756936119979,7.45,208.99,208.91,2.88940563]
[1756936120180,7.45,208.97,208.91,2.88940563]
[1756936123182,7.45,208.97,208.92,35.29]
[1756936123381,110.56917713,209.02,208.92,35.29]
[1756936124079,8.02,209.01,208.92,35.29]
[1756936124277,8.02,209.01,208.94,2.88940563]
[1756936126885,8.02,209.01,208.93,4.95940563]
[1756936127080,8.02,209.08,208.93,4.95940563]
[1756936127682,8.02,209.08,208.93,38.67940563]
[1756936128285,2.88940563,209.09,208.93,38.67940563]
[1756936128787,8.02,209.08,208.93,38.67940563]
[1756936128980,8.02,209.08,208.93,4.95940563]
[1756936129184,2.88940563,209.09,208.93,42.09940563]
[1756936129380,8.02,209.08,208.93,4.95940563]
[1756936129579,8.02,209.08,208.93,14.77940563]
[1756936129991,2.88940563,209.09,208.93,14.77940563]
[1756936130488,8.02,209.08,208.93,14.77940563]
[1756936131789,2.88940563,209.09,208.93,14.77940563]
[1756936132091,2.88940563,209.09,208.93,21.87940563]
[1756936132293,8.02,209.08,208.94,2.07]
[1756936132592,10.90940563,209.08,208.94,2.07]
[1756936133391,8.02,209.08,208.94,2.07]
[1756936133592,10.90940563,209.08,208.94,2.07]
[1756936140896,8.02,209.08,208.94,2.07]
[1756936142495,8.02,209.08,208.97,2.07]
[1756936143592,8.02,209.08,209.0,1.84549903]
[1756936147501,8.02,209.08,209.02,1.84549903]
[1756936167317,74.0,209.09,209.04,1.84549903]
[1756936167516,7.75,209.08,209.04,1.84549903]
[1756936167713,74.0,209.09,209.04,1.84549903]
[1756936167921,7.75,209.08,209.01,2.08]
[1756936168122,7.75,209.08,209.03,1.84549903]
[1756936168322,74.0,209.09,209.03,1.84549903]
[1756936168520,7.75,209.08,209.03,1.84549903]
[1756936168717,74.0,209.09,209.03,3.92549903]
[1756936168920,7.75,209.08,209.03,3.92549903]
[1756936169116,74.0,209.09,209.03,3.92549903]
[1756936169320,7.75,209.08,209.03,3.92549903]
[1756936169723,74.0,209.09,209.03,3.92549903]
[1756936170424,7.75,209.08,209.03,3.92549903]
[1756936170625,74.0,209.09,209.03,3.92549903]
[1756936170817,7.75,209.08,209.03,3.92549903]
[1756936171219,7.75,209.08,208.97,2.08]
[1756936171424,7.75,209.08,209.02,1.84549903]
[1756936171619,13.05994242,209.08,209.0,1.84549903]
[1756936172223,7.75,209.06,209.0,1.84549903]
[1756936172619,1.84549903,209.05,208.98,1.84549903]
[1756936172820,7.75,209.02,208.94,3.92549903]
[1756936173027,1.84549903,209.01,208.94,3.92549903]
[1756936173224,7.75,209.0,208.92,1.84549903]
[1756936173826,9.59549903,209.0,208.92,1.84549903]
[1756936178132,9.59549903,209.0,208.9,1.84549903]
[1756936178930,7.75,208.98,208.9,1.84549903]
[1756936179124,9.59549903,208.98,208.9,1.84549903]
[1756936184836,7.99,208.96,208.9,1.84549903]
[1756936185934,9.83549903,208.96,208.88,1.84549903]
[1756936187532,9.83549903,208.96,208.85,2.09]
[1756936187832,7.99,208.94,208.88,1.84549903]
[1756936189441,7.99,208.94,208.85,2.09]
[1756936189636,7.99,208.94,208.87,1.84549903]
[1756936196242,7.99,208.94,208.88,2.09]
[1756936199541,7.99,208.94,208.89,1.84549903]
[1756936199746,74.0,208.95,208.89,1.84549903]
[1756936199947,7.99,208.94,208.89,1.84549903]
[1756936200448,74.0,208.95,208.89,1.84549903]
[1756936200840,7.99,208.94,208.89,1.84549903]
[1756936201246,74.0,208.95,208.89,1.84549903]
[1756936201448,7.99,208.94,208.89,1.84549903]
[1756936201942,74.0,208.95,208.89,1.84549903]
[1756936202353,7.99,208.94,208.89,1.84549903]
[1756936203153,74.0,208.95,208.89,1.84549903]
[1756936203552,7.99,208.94,208.88,2.09]
[1756936210858,81.99,208.95,208.88,2.09]
[1756936217670,7.99,208.95,208.91,2.09]
[1756936217969,5.30994242,209.0,208.9,2.09]
[1756936218174,7.47,208.99,208.9,2.09]
[1756936223275,81.47,208.99,208.9,2.09]
[1756936244082,81.47,208.99,208.92,2.88678308]
[1756936245585,81.47,208.99,208.93,2.06]
[1756936245987,81.47,208.99,208.95,2.88678308]
[1756936246183,7.99,208.98,208.95,2.88678308]
[1756936246689,74.0,208.99,208.95,2.88678308]
[1756936246888,7.99,208.98,208.95,2.88678308]
[1756936247190,7.99,208.98,208.96,2.06]
[1756936251392,7.99,209.03,208.95,4.94678308]
[1756936252291,7.99,209.03,208.95,2.06]
[1756936252498,7.99,209.03,208.96,2.88678308]
[1756936263500,7.99,209.03,208.99,1.84581533]
[1756936263699,74.0,209.04,208.99,1.84581533]
[1756936263896,74.0,209.03,208.99,1.84581533]
[1756936264198,7.99,209.02,208.99,1.84581533]
[1756936264602,74.0,209.03,208.99,1.84581533]
[1756936264798,7.99,209.02,208.99,1.84581533]
[1756936264996,74.0,209.03,208.99,1.84581533]
[1756936265501,7.99,209.02,208.99,1.84581533]
[1756936265695,74.0,209.03,208.99,1.84581533]
[1756936266193,7.99,209.02,208.99,1.84581533]
[1756936266596,74.0,209.03,208.99,1.84581533]
[1756936266796,7.99,209.02,208.99,1.84581533]
[1756936267100,74.0,209.03,208.99,1.84581533]
[1756936267294,7.99,209.02,208.99,1.84581533]
[1756936268001,74.0,209.03,208.99,1.84581533]
[1756936268497,7.99,209.02,208.99,1.84581533]
[1756936269603,74.0,209.03,208.99,1.84581533]
[1756936270103,7.99,209.02,208.99,1.84581533]
[1756936270302,74.0,209.03,208.99,1.84581533]
[1756936270606,7.99,209.02,208.99,1.84581533]
[1756936270902,74.0,209.03,208.99,1.84581533]
[1756936271510,7.99,209.02,208.99,1.84581533]
[1756936271696,74.0,209.03,208.99,1.84581533]
[1756936272101,7.61,209.02,208.99,1.84581533]
[1756936272507,74.0,209.03,208.99,1.84581533]
[1756936273302,7.61,209.02,208.99,1.84581533]
[1756936273499,74.0,209.03,208.99,1.84581533]
[1756936273703,7.61,209.02,208.99,1.84581533]
[1756936274010,74.0,209.03,208.99,1.84581533]
[1756936274207,7.61,209.02,208.99,1.84581533]
[1756936274708,74.0,209.03,208.99,1.84581533]
[1756936274910,7.61,209.02,208.99,1.84581533]
[1756936275311,74.0,209.03,208.99,1.84581533]
[1756936275513,74.0,209.03,209.01,1.84581533]
[1756936275812,74.0,209.03,208.99,1.84581533]
[1756936276104,7.61,209.02,208.99,1.84581533]
[1756936276310,74.0,209.03,208.99,1.84581533]
[1756936276612,7.61,209.02,208.99,1.84581533]
[1756936276810,74.0,209.03,208.99,1.84581533]
[1756936277111,7.61,209.02,208.99,1.84581533]
[1756936277310,74.0,209.03,208.99,1.84581533]
[1756936277513,7.61,209.02,208.99,1.84581533]
[1756936277708,74.0,209.03,208.99,1.84581533]
[1756936278011,7.61,209.02,208.99,1.84581533]
[1756936278206,74.0,209.03,208.99,1.84581533]
[1756936278410,74.0,209.03,208.99,3.91581533]
[1756936278910,7.61,209.02,209.01,1.84581533]
[1756936285519,7.61,209.02,208.96,6.3754]
[1756936285818,74.0,209.03,209.0,1.84581533]
[1756936286221,7.61,209.02,209.01,1.84581533]
[1756936289013,74.0,209.03,209.01,3.91581533]
[1756936289219,7.61,209.04,209.01,3.91581533]
[1756936289415,7.61,209.07,209.01,3.91581533]
[1756936292125,74.0,209.08,209.03,1.84581533]
[1756936292320,7.61,209.07,209.03,1.84581533]
[1756936292523,74.0,209.08,209.03,1.84581533]
[1756936292822,7.61,209.07,209.03,1.84581533]
[1756936293016,74.0,209.08,209.03,1.84581533]
[1756936293217,7.61,209.07,209.03,3.91581533]
[1756936293821,74.0,209.08,209.03,3.91581533]
[1756936294023,74.0,209.08,209.03,1.84581533]
[1756936294322,7.61,209.07,209.03,1.84581533]
[1756936294512,74.0,209.08,209.03,1.84581533]
[1756936294718,74.0,209.08,209.05,1.84581533]
[1756936295115,7.61,209.07,209.05,1.84581533]
[1756936295321,74.0,209.08,209.05,1.84581533]
[1756936295620,7.61,209.07,209.05,1.84581533]
[1756936295826,74.0,209.08,209.05,1.84581533]
[1756936296423,7.61,209.07,209.05,1.84581533]
[1756936297225,74.0,209.08,209.05,1.84581533]
[1756936298123,7.61,209.07,209.05,1.84581533]
[1756936298325,74.0,209.08,209.05,1.84581533]
[1756936299322,7.61,209.07,209.05,1.84581533]
[1756936300017,74.0,209.08,209.05,1.84581533]
[1756936300421,7.61,209.07,209.05,1.84581533]
[1756936300622,5.30994242,209.1,209.05,1.84581533]
[1756936300828,79.30994242,209.11,209.05,3.91581533]
[1756936301226,7.61,209.1,209.05,3.91581533]
[1756936301825,74.0,209.11,209.07,1.84581533]
[1756936302032,7.97,209.1,209.07,1.84581533]
[1756936302228,7.97,209.1,209.07,3.92581533]
[1756936302628,7.97,209.1,209.08,2.08]
[1756936302927,7.97,209.1,209.09,1.84581533]
[1756936306132,7.97,209.1,209.09,3.92581533]
[1756936306932,7.97,209.1,209.09,1.84581533]
[1756936308428,7.97,209.13,209.1,2.08]
[1756936308733,85.45214126,209.14,209.1,2.08]
[1756936309535,7.97,209.13,209.1,2.08]
[1756936309734,85.45214126,209.14,209.1,2.08]
[1756936310638,7.97,209.13,209.07,2.08]
[1756936310827,85.45214126,209.14,209.07,2.08]
[1756936311032,7.97,209.13,209.09,1.84581533]
[1756936311232,85.45214126,209.14,209.09,3.92581533]
[1756936312132,7.97,209.13,209.09,3.92581533]
[1756936312331,85.45214126,209.14,209.09,3.92581533]
[1756936312530,7.97,209.13,209.09,3.92581533]
[1756936312729,85.45214126,209.14,209.09,3.92581533]
[1756936313532,85.45214126,209.14,209.09,1.84581533]
[1756936313736,7.97,209.13,209.09,1.84581533]
[1756936314033,85.45214126,209.14,209.09,3.92581533]
[1756936314235,7.97,209.13,209.09,3.92581533]
[1756936314436,85.45214126,209.14,209.09,3.92581533]
[1756936314635,7.97,209.13,209.09,3.92581533]
[1756936315232,85.45214126,209.14,209.09,2.08]
[1756936315438,85.45214126,209.14,209.1,1.84581533]
[1756936316033,7.97,209.13,209.1,1.84581533]
[1756936316833,85.45214126,209.14,209.1,1.84581533]
[1756936317435,7.97,209.13,209.1,1.84581533]
[1756936317642,85.45214126,209.14,209.1,1.84581533]
[1756936317837,7.97,209.13,209.1,3.92581533]
[1756936318038,85.45214126,209.14,209.1,3.92581533]
[1756936318236,7.97,209.13,209.1,3.92581533]
[1756936318440,7.97,209.12,209.1,3.92581533]
[1756936319337,7.97,209.15,209.1,1.84581533]
[1756936320435,74.0,209.16,209.1,1.84581533]
[1756936320635,7.97,209.15,209.1,1.84581533]
[1756936321446,74.0,209.16,209.1,1.84581533]
[1756936321648,7.97,209.15,209.1,1.84581533]
[1756936321848,74.0,209.16,209.1,1.84581533]
[1756936322048,7.97,209.15,209.1,1.84581533]
[1756936322249,74.0,209.16,209.1,1.84581533]
[1756936322444,7.97,209.15,209.1,1.84581533]
[1756936322748,74.0,209.16,209.1,1.84581533]
[1756936323146,7.97,209.15,209.1,1.84581533]
[1756936323541,74.0,209.16,209.1,1.84581533]
[1756936323740,7.97,209.15,209.1,1.84581533]
[1756936324348,74.0,209.16,209.1,1.84581533]
[1756936324545,7.97,209.15,209.1,1.84581533]
[1756936325149,7.97,209.15,209.1,3.92581533]
[1756936325653,7.97,209.15,209.1,2.08]
[1756936325847,7.97,209.15,209.08,2.08]
[1756936328047,7.97,209.2,209.11,2.08]
[1756936332954,74.0,209.19,209.11,2.08]
[1756936333151,7.89,209.18,209.11,2.08]
[1756936342455,7.89,209.18,209.11,5.22266947]
[1756936343960,7.89,209.18,209.11,3.14266947]
[1756936347963,7.89,209.13,209.02,2.07]
[1756936348164,8.45261189,209.15,209.0,3.14266947]
[1756936348360,7.89,209.14,209.0,3.14266947]
[1756936348756,13.19994242,209.14,209.0,3.14266947]
[1756936348960,7.89,209.14,209.0,3.14266947]
[1756936349462,8.45261189,209.15,209.0,3.14266947]
[1756936350057,7.89,209.13,209.0,3.14266947]
[1756936350459,5.30994242,209.14,209.01,125.47118003]
[1756936350662,7.89,209.13,209.01,125.47118003]
[1756936350862,5.30994242,209.14,209.01,125.47118003]
[1756936351071,7.89,209.13,209.01,125.47118003]
[1756936351269,5.30994242,209.14,209.01,125.47118003]
[1756936351567,7.89,209.13,209.01,125.47118003]
[1756936352571,5.30994242,209.14,209.01,125.47118003]
[1756936353064,7.89,209.14,209.01,125.47118003]
[1756936353471,7.89,209.14,209.02,2.07]
[1756936353871,7.89,209.12,209.02,2.07]
[1756936362677,7.89,209.12,209.04,2.09]
[1756936376284,7.89,209.12,209.02,3.14266947]
[1756936376482,7.75,209.12,209.02,3.14266947]
[1756936376782,7.75,209.12,209.03,2.09]
[1756936385486,7.75,209.12,209.05,1.84457884]
[1756936387288,7.75,209.12,209.03,119.51]
[1756936387488,7.75,209.12,209.05,1.84457884]
[1756936389886,81.15452126,209.13,209.03,119.49]
[1756936390091,7.75,209.12,209.05,1.84457884]
[1756936391092,13.05994242,209.12,209.05,1.84457884]
[1756936391594,7.75,209.12,209.05,1.84457884]
[1756936392194,13.05994242,209.12,209.05,1.84457884]
[1756936397900,13.05994242,209.12,209.05,3.93457884]
[1756936417531,7.75,209.12,209.05,3.93457884]
[1756936418626,7.75,209.12,209.07,1.84457884]
[1756936418827,79.30994242,209.13,209.07,1.84457884]
[1756936419319,7.8,209.12,209.07,3.93457884]
[1756936419716,79.30994242,209.13,209.07,1.84457884]
[1756936420127,7.8,209.12,209.07,3.93457884]
[1756936420325,79.30994242,209.13,209.07,1.84457884]
[1756936420621,7.8,209.12,209.07,3.93457884]
[1756936421420,7.8,209.12,209.07,2.09]
[1756936421723,79.30994242,209.13,209.07,1.84457884]
[1756936421928,7.82,209.12,209.07,3.92457884]
[1756936422127,79.30994242,209.13,209.07,1.84457884]
[1756936422329,7.82,209.12,209.07,3.92457884]
[1756936422526,79.30994242,209.13,209.07,1.84457884]
[1756936422729,7.82,209.12,209.07,3.92457884]
[1756936423029,79.30994242,209.13,209.07,1.84457884]
[1756936423230,7.82,209.12,209.07,1.84457884]
[1756936423430,79.30994242,209.13,209.07,1.84457884]
[1756936423730,7.82,209.12,209.07,1.84457884]
[1756936423929,79.30994242,209.13,209.07,1.84457884]
[1756936425031,7.82,209.12,209.07,1.84457884]
[1756936428533,79.30994242,209.13,209.07,1.84457884]
[1756936430235,7.82,209.12,209.07,1.84457884]
[1756936430435,79.30994242,209.13,209.07,1.84457884]
[1756936431432,7.82,209.12,209.07,1.84457884]
[1756936431639,79.30994242,209.13,209.07,1.84457884]
[1756936432138,7.82,209.12,209.07,1.84457884]
[1756936433438,79.30994242,209.13,209.07,1.84457884]
[1756936433642,7.82,209.12,209.07,1.84457884]
[1756936434334,79.30994242,209.13,209.07,1.84457884]
[1756936434829,7.82,209.12,209.07,1.84457884]
[1756936435741,79.30994242,209.13,209.05,119.28]
[1756936435941,7.82,209.12,209.06,1.84457884]
[1756936447054,74.0,209.11,209.01,2.08]
[1756936447248,9.66457884,209.1,208.99,1.84457884]
[1756936447452,5.30994242,209.08,208.99,117.1]
[1756936447648,5.30994242,209.08,208.98,2.08]
[1756936447849,7.82,209.07,208.99,117.1]
[1756936448151,5.30994242,209.08,208.99,117.1]
[1756936448558,7.82,209.07,208.99,117.1]
[1756936448856,5.30994242,209.08,208.99,117.1]
[1756936449057,7.82,209.07,208.99,117.1]
[1756936449258,5.30994242,209.08,208.99,117.08]
[1756936449857,7.82,209.07,208.99,117.08]
[1756936450055,5.30994242,209.08,208.99,117.08]
[1756936450261,7.82,209.08,208.99,117.08]
[1756936450455,5.30994242,209.08,208.99,117.08]
[1756936450655,5.30994242,209.08,208.98,2.08]
[1756936450850,8.19357148,209.08,208.98,119.16]
[1756936451055,7.82,209.07,208.98,119.16]
[1756936451257,7.82,209.07,208.98,2.08]
[1756936451459,7.82,209.06,208.98,119.16]
[1756936451960,79.30994242,209.07,208.98,119.16]
[1756936452158,7.69,209.06,208.98,119.16]
[1756936452852,74.0,209.07,208.98,119.16]
[1756936453057,7.69,209.06,208.98,119.16]
[1756936453259,74.0,209.07,208.98,119.16]
[1756936453460,7.69,209.06,208.98,119.16]
[1756936453862,74.0,209.07,208.98,119.16]
[1756936454062,7.69,209.06,208.98,119.16]
[1756936454264,74.0,209.07,208.98,119.16]
[1756936455257,7.69,209.06,208.98,119.16]
[1756936455458,74.0,209.07,208.98,119.16]
[1756936456365,7.69,209.06,208.98,119.16]
[1756936456560,74.0,209.07,208.98,119.16]
[1756936456757,7.69,209.06,208.98,119.16]
[1756936456959,74.0,209.07,208.98,119.16]
[1756936457261,7.69,209.06,208.98,119.16]
[1756936457559,74.0,209.07,208.98,119.16]
[1756936457762,7.69,209.06,208.98,119.16]
[1756936458062,74.0,209.07,208.98,119.16]
[1756936458263,7.69,209.06,208.98,119.16]
[1756936458461,74.0,209.07,208.98,119.16]
[1756936458859,7.69,209.06,208.98,119.16]
[1756936459364,74.0,209.07,208.98,119.16]
[1756936459565,7.69,209.06,208.98,119.16]
[1756936459767,74.0,209.07,208.98,119.16]
[1756936459966,7.69,209.06,208.98,119.16]
[1756936460764,74.0,209.07,208.98,2.08]
[1756936460965,81.69,209.06,208.99,117.06]
[1756936461167,7.69,209.05,208.98,2.08]
[1756936461366,74.0,209.06,208.98,2.08]
[1756936461663,74.0,209.06,208.98,119.14]
[1756936462368,7.69,209.05,208.98,119.14]
[1756936462664,7.69,209.05,208.99,2.09]
[1756936465478,7.69,209.05,208.99,119.13]
[1756936466777,7.69,209.05,208.99,2.09]
[1756936466975,7.69,209.05,208.99,119.13]
[1756936467976,7.69,209.05,208.99,117.04]
[1756936468177,74.0,209.06,209.0,2.09]
[1756936469474,74.0,209.06,209.01,117.04]
[1756936469869,81.69,209.11,209.02,2.09]
[1756936473275,81.69,209.11,209.04,2.09]
[1756936477580,7.69,209.11,209.04,2.09]
[1756936479584,7.69,209.11,209.05,116.98]
[1756936479982,7.69,209.11,209.04,2.09]
[1756936480182,7.69,209.11,209.05,25.68]
[1756936482084,5.30994242,209.16,209.05,25.68]
[1756936482284,7.52,209.15,209.06,2.1]